bitfinex-derivatives/quotes_ETHF0:USTF0_20240922
["timestamp","ask_amount","ask_price","bid_price","bid_amount"]
[1726977941120,0.38474,2598.8,2598.6,0.3778]
[1726977944026,3.6417,2598.9,2598.6,0.3778]
[1726977944225,0.38474,2598.8,2598.6,0.3778]
[1726977947824,4.02642,2598.9,2598.6,0.3778]
[1726977948417,0.38473,2598.8,2598.6,0.3778]
[1726977950417,0.38473,2598.8,2598.6,1.38168214]
[1726977951424,4.02642,2598.9,2598.6,1.76644214]
[1726977951631,0.38473,2598.8,2598.6,1.38168214]
[1726977952643,4.02642,2598.9,2598.6,1.38168214]
[1726977952837,4.02642,2598.9,2598.6,1.76644214]
[1726977953134,4.02642,2598.9,2598.7,1.00388214]
[1726977954735,2.99499079,2599.7,2598.8,8.64180558]
[1726977954930,0.7585,2600.1,2599.6,4.72328872]
[1726977955133,0.7585,2600.1,2599.7,2.74391285]
[1726977955330,0.7585,2600.1,2599.8,1.00809676]
[1726977955534,0.7585,2600.1,2599.7,1.39268676]
[1726977955832,0.7585,2600.1,2599.7,1.00809676]
[1726977956522,0.7585,2600.1,2599.7,1.39269676]
[1726977957534,0.7585,2600.1,2599.7,0.3846]
[1726977960331,0.7585,2600.1,2599.6,3.5953]
[1726977960566,0.7585,2600.1,2599.5,0.78232]
[1726977960841,0.7585,2600.1,2599.6,3.2078]
[1726977962432,0.7585,2600.1,2599.6,3.59241]
[1726977963633,1.14304,2600.1,2599.6,3.59241]
[1726977966140,0.7585,2600.1,2599.6,3.59241]
[1726977967142,1.14304,2600.1,2599.6,3.59241]
[1726977969030,1.14304,2600.1,2599.6,0.38461]
[1726977969243,1.14304,2600.1,2599.6,3.59241]
[1726977969845,1.14304,2600.1,2599.7,0.3846]
[1726977969846,0.7585,2600.1,2599.7,0.3846]
[1726977970137,0.7585,2600.1,2599.6,3.59241]
[1726977971136,1.14304,2600.1,2599.6,3.59241]
[1726977972850,1.39,2599.8,2599.6,3.2078]
[1726977973039,0.7466,2599.7,2599.3,3.2078]
[1726977973238,0.77061,2599.6,2599.3,3.2078]
[1726977973446,0.386,2599.6,2599.3,3.59245]
[1726977976743,0.386,2599.6,2599.3,0.38465]
[1726977976949,0.386,2599.6,2599.3,3.59245]
[1726977981938,0.386,2599.6,2599.3,0.38465]
[1726977982344,0.386,2599.6,2599.3,3.59245]
[1726977983157,0.386,2599.6,2599.3,3.2078]
[1726977983855,0.77062,2599.6,2599.3,3.2078]
[1726977984049,0.38463,2599.5,2599.3,3.2078]
[1726977984249,1.776,2599.6,2599.3,3.2078]
[1726977984549,2.16062,2599.6,2599.3,3.2078]
[1726977985560,0.386,2599.6,2599.3,3.2078]
[1726977985759,0.386,2599.6,2599.3,3.59246]
[1726977985957,0.386,2599.6,2599.3,3.2078]
[1726977986151,0.386,2599.6,2599.3,3.5846]
[1726977986651,0.77061,2599.6,2599.3,3.5846]
[1726977991048,0.386,2599.6,2599.3,3.5846]
[1726977991356,3.2078,2600.0,2599.4,1.39]
[1726977991357,5.7338,2600.0,2599.4,1.39]
[1726977991552,5.7338,2600.0,2599.7,0.38459]
[1726977992051,5.7338,2600.0,2599.7,0.78209]
[1726977992358,5.7338,2600.0,2599.7,0.3975]
[1726977992551,1.1706,2599.9,2599.7,0.3975]
[1726977993554,1.1706,2599.9,2599.6,4.9824]
[1726977993555,1.1706,2599.9,2599.6,3.2078]
[1726977993751,1.1706,2599.9,2599.6,3.5924]
[1726977993950,1.1706,2599.9,2599.6,3.2078]
[1726977994651,1.1706,2599.9,2599.6,3.59241]
[1726977995557,1.55517,2599.9,2599.6,3.2078]
[1726977995747,1.1706,2599.9,2599.6,3.2078]
[1726977996949,1.1706,2599.9,2599.6,3.59241]
[1726977997453,1.1706,2599.9,2599.6,3.2078]
[1726977998861,1.55517,2599.9,2599.6,3.2078]
[1726977999655,1.55517,2599.9,2599.5,2.78271676]
[1726977999855,1.55517,2599.9,2599.5,5.99051676]
[1726978000758,0.38458,2599.8,2599.5,4.21589676]
[1726978001057,1.55517,2599.9,2599.5,4.60051676]
[1726978001256,1.39,2599.8,2599.5,4.21589676]
[1726978001459,0.3846,2599.7,2599.5,4.21589676]
[1726978001665,0.3846,2599.7,2599.5,3.2078]
[1726978002161,0.3846,2599.7,2599.4,1.00809676]
[1726978002162,6.3724,2599.6,2599.4,1.00809676]
[1726978002357,2.175,2599.5,2599.2,1.00809676]
[1726978002563,0.38466,2599.3,2599.1,1.37669676]
[1726978003556,0.38466,2599.3,2599.1,1.00809676]
[1726978004060,0.38465,2599.4,2599.0,1.39279676]
[1726978004956,0.38466,2599.3,2599.0,1.00809676]
[1726978006368,0.38466,2599.3,2599.0,1.39279676]
[1726978006564,2.5753,2599.5,2599.0,1.39279676]
[1726978006766,0.38466,2599.3,2599.0,1.00809676]
[1726978008264,0.38465,2599.4,2599.0,1.39279676]
[1726978009164,0.38466,2599.3,2599.0,1.00809676]
[1726978009966,0.38466,2599.3,2598.9,3.58710676]
[1726978010369,1.39,2599.4,2599.0,0.3847]
[1726978011370,0.38466,2599.3,2598.9,3.58710676]
[1726978012171,0.38467,2599.2,2598.9,3.58710676]
[1726978012366,0.38467,2599.2,2598.9,2.57901]
[1726978012572,0.3803,2599.1,2598.9,2.57901]
[1726978012774,0.3803,2599.1,2598.9,3.58710676]
[1726978017974,0.3803,2599.1,2599.0,1.00809676]
[1726978019379,1.1394,2599.1,2598.9,1.81239676]
[1726978019581,1.52409,2599.1,2599.0,1.00809676]
[1726978019773,0.38472,2598.9,2598.7,2.52358548]
[1726978020076,0.3848,2598.8,2598.6,1.00809676]
[1726978020268,0.7911,2598.7,2598.5,4.60066676]
[1726978023377,0.7911,2598.7,2598.5,3.59257]
[1726978023777,0.7911,2598.7,2598.5,3.2078]
[1726978024075,0.7911,2598.7,2598.3,3.64538872]
[1726978024076,3.914,2598.6,2598.3,1.74799676]
[1726978024276,3.914,2598.6,2598.2,4.102]
[1726978024277,1.39,2598.4,2598.2,4.102]
[1726978024586,1.7748,2598.4,2598.2,4.102]
[1726978024878,2.524,2598.6,2597.9,1.39]
[1726978024879,0.38481,2598.3,2597.9,1.39]
[1726978025176,0.38479,2598.4,2598.2,0.3914]
[1726978026281,0.38479,2598.4,2598.3,0.3689]
[1726978030184,2.525,2598.4,2598.3,0.3689]
[1726978030682,2.90979,2598.4,2598.0,3.59264]
[1726978030891,1.119,2598.3,2598.0,3.59264]
[1726978031580,1.119,2598.3,2598.0,3.2078]
[1726978031781,0.38483,2598.2,2598.0,3.2078]
[1726978032175,2.89381,2598.3,2598.0,3.2078]
[1726978046095,2.89381,2598.3,2598.0,3.59265]
[1726978046393,0.38479,2598.5,2598.1,0.38482]
[1726978046589,0.38473,2598.9,2598.5,0.38477]
[1726978046806,1.53901,2599.0,2598.6,0.392]
[1726978046999,1.53901,2599.0,2598.6,1.1774]
[1726978047197,1.53901,2599.0,2598.7,0.38474]
[1726978047391,4.06201,2599.0,2598.6,1.1774]
[1726978047586,4.06201,2599.0,2598.6,1.56215]
[1726978047788,0.38472,2598.9,2598.6,1.56215]
[1726978048993,5.45201,2599.0,2598.6,1.56215]
[1726978049194,0.38472,2598.9,2598.5,0.38477]
[1726978049496,0.38472,2598.9,2598.3,4.5978]
[1726978049497,0.38475,2598.7,2598.4,0.3852]
[1726978049699,0.7812,2598.6,2598.3,3.5926]
[1726978049888,1.1503,2598.6,2598.3,3.5926]
[1726978052293,1.53506,2598.6,2598.3,3.5926]
[1726978052496,2.92506,2598.6,2598.3,3.5926]
[1726978052701,2.92506,2598.6,2598.3,0.3848]
[1726978053002,2.5403,2598.6,2598.2,0.3852]
[1726978053234,2.5403,2598.6,2598.0,0.4618]
[1726978053235,0.38481,2598.3,2598.0,0.4618]
[1726978053497,0.7485,2598.2,2598.0,0.0634]
[1726978053706,1.1362,2598.2,2598.0,0.0634]
[1726978056303,1.1362,2598.2,2598.0,0.44825]
[1726978057999,1.1362,2598.2,2598.0,0.0634]
[1726978058402,1.1362,2598.2,2598.0,0.44825]
[1726978060498,1.1362,2598.2,2598.0,0.0634]
[1726978061203,1.1362,2598.2,2597.9,3.59265]
[1726978062907,1.1362,2598.2,2598.0,0.38485]
[1726978064407,1.1362,2598.2,2598.0,0.75764]
[1726978064598,1.1362,2598.2,2598.1,0.3853]
[1726978068413,2.523,2598.8,2598.3,0.3848]
[1726978068603,0.3654,2598.6,2598.3,0.3848]
[1726978068905,0.75017,2598.6,2598.3,0.3848]
[1726978069802,0.3654,2598.6,2598.5,0.38477]
[1726978070206,0.7565,2598.7,2598.6,0.38476]
[1726978070441,0.7565,2598.7,2598.5,0.38477]
[1726978070895,0.7565,2598.7,2598.6,0.38476]
[1726978073211,0.3748,2598.7,2598.6,0.38476]
[1726978073406,0.3655,2598.8,2598.5,5.97519676]
[1726978073610,0.3655,2598.8,2598.6,1.39284676]
[1726978073806,0.3655,2598.8,2598.6,0.38475]
[1726978074012,0.3655,2598.8,2598.7,0.3859]
[1726978076710,0.3662,2598.9,2598.7,0.3859]
[1726978076909,0.7627,2598.9,2598.7,0.3859]
[1726978080806,0.7627,2598.9,2598.6,3.59255]
[1726978081520,1.14742,2598.9,2598.6,3.59255]
[1726978081910,1.39,2598.8,2598.6,3.2078]
[1726978089738,1.77473,2598.8,2598.6,3.2078]
[1726978099824,1.77473,2598.8,2598.5,1.39286676]
[1726978100118,1.77473,2598.8,2598.6,3.2078]
[1726978100823,1.77473,2598.8,2598.5,0.38477]
[1726978101624,1.77473,2598.8,2598.6,3.2078]
[1726978103525,0.38475,2598.7,2598.6,3.2078]
[1726978104427,0.38476,2598.6,2598.3,0.7805]
[1726978104624,1.14646,2598.6,2598.3,0.7805]
[1726978104823,0.38475,2598.7,2598.5,3.2078]
[1726978105625,0.38475,2598.7,2598.6,3.2078]
[1726978109020,0.38476,2598.6,2598.4,1.00809676]
[1726978109227,0.77976,2598.6,2598.4,1.00809676]
[1726978113531,0.77976,2598.6,2598.5,1.00809676]
[1726978115433,0.77976,2598.6,2598.3,1.00809676]
[1726978115434,0.38479,2598.4,2598.3,1.00809676]
[1726978115733,0.38479,2598.4,2598.2,1.00809676]
[1726978115734,0.3848,2598.3,2598.2,1.00809676]
[1726978116035,0.38482,2598.2,2598.0,1.00809676]
[1726978118129,0.38482,2598.2,2597.9,4.21589676]
[1726978119935,1.39,2598.0,2597.8,1.00809676]
[1726978120237,1.39,2598.0,2597.5,1.76601676]
[1726978120238,0.7428,2597.9,2597.5,1.76601676]
[1726978120437,1.39,2597.8,2597.5,0.373]
[1726978120631,0.38491,2597.6,2597.3,4.21589676]
[1726978120838,0.3709,2597.5,2597.4,0.60172851]
[1726978121336,0.3709,2597.5,2597.3,3.59274]
[1726978122741,0.3709,2597.5,2597.3,3.2078]
[1726978123238,0.7498,2597.5,2597.3,3.2078]
[1726978123736,0.7498,2597.5,2597.3,3.59275]
[1726978132640,0.38494,2597.4,2597.3,3.2078]
[1726978132840,2.52473,2597.5,2597.3,3.2078]
[1726978140053,2.52473,2597.5,2597.1,0.76828]
[1726978140460,2.52473,2597.5,2597.1,3.97608]
[1726978141361,0.38494,2597.4,2597.1,3.97608]
[1726978141663,0.3938,2597.3,2597.1,3.97608]
[1726978145964,0.3938,2597.3,2597.1,3.59278]
[1726978146158,0.3689,2597.2,2597.1,3.59278]
[1726978148062,0.3689,2597.2,2597.1,0.38498]
[1726978148361,0.3689,2597.2,2597.1,3.59278]
[1726978152164,0.3689,2597.2,2597.1,3.2078]
[1726978153557,0.75387,2597.2,2597.1,3.2078]
[1726978153760,0.38499,2597.1,2596.8,3.2078]
[1726978153962,1.39,2596.9,2596.8,3.2078]
[1726978154370,2.1552,2596.9,2596.8,3.2078]
[1726978155258,0.7652,2596.9,2596.8,3.2078]
[1726978158963,0.7652,2596.9,2596.8,3.59283]
[1726978163262,0.7652,2596.9,2596.8,4.60092676]
[1726978165054,0.7652,2596.9,2596.8,5.95836811]
[1726978166270,0.7652,2596.9,2596.8,4.95027135]
[1726978169379,8.08017079,2597.9,2596.8,9.93193007]
[1726978169563,1.166,2597.4,2597.2,0.38495]
[1726978169764,1.166,2597.4,2597.2,1.76107755]
[1726978170363,1.55094,2597.4,2597.2,1.37612755]
[1726978170566,1.55094,2597.4,2597.2,0.3674]
[1726978170967,1.55094,2597.4,2597.1,4.60149755]
[1726978172676,1.166,2597.4,2597.1,4.60149755]
[1726978173078,1.55094,2597.4,2597.2,1.00872755]
[1726978173774,1.166,2597.4,2597.2,1.00872755]
[1726978176583,1.166,2597.4,2597.3,1.00872755]
[1726978177776,0.7916,2597.4,2597.3,1.39367755]
[1726978177976,4.6912,2597.7,2597.4,0.38493]
[1726978178171,5.4774,2597.7,2597.4,1.39395574]
[1726978180174,2.9634,2597.7,2597.4,1.39395574]
[1726978180973,1.1885,2597.7,2597.6,0.38491]
[1726978181366,4.28787,2597.9,2597.6,1.79643574]
[1726978181572,4.28787,2597.9,2597.6,1.41152574]
[1726978182571,4.28787,2597.9,2597.6,0.4025]
[1726978183278,4.28787,2597.9,2597.5,4.98143574]
[1726978183480,1.39,2597.8,2597.5,4.60173574]
[1726978183872,0.3723,2597.7,2597.5,4.60173574]
[1726978184479,0.3723,2597.7,2597.6,0.38491]
[1726978184783,0.3723,2597.7,2597.5,4.21682574]
[1726978185385,0.3723,2597.7,2597.5,4.60173574]
[1726978187482,0.3723,2597.7,2597.5,4.21682574]
[1726978187680,0.3723,2597.7,2597.5,4.60174574]
[1726978188581,0.3723,2597.7,2597.6,3.2078]
[1726978190085,0.7554,2598.0,2597.6,4.21682574]
[1726978190284,0.7554,2598.0,2597.7,0.38488]
[1726978190285,0.3784,2597.9,2597.7,0.38488]
[1726978191181,1.7684,2597.9,2597.7,0.38488]
[1726978191583,1.7684,2597.9,2597.6,3.5927]
[1726978191788,1.7684,2597.9,2597.6,3.6561]
[1726978192796,1.7684,2597.9,2597.8,3.2078]
[1726978194401,2.15326,2597.9,2597.8,3.2078]
[1726978196089,2.15326,2597.9,2597.6,0.0634]
[1726978196290,2.15326,2597.9,2597.7,3.2078]
[1726978196484,2.15326,2597.9,2597.6,0.0634]
[1726978196788,2.15326,2597.9,2597.7,3.2078]
[1726978198490,0.38488,2597.8,2597.7,3.2078]
[1726978198687,1.77488,2597.8,2597.7,3.2078]
[1726978201088,2.15327,2597.9,2597.7,3.2078]
[1726978201686,0.38488,2597.8,2597.7,3.2078]
[1726978204591,1.7684,2597.9,2597.7,3.2078]
[1726978205484,0.38488,2597.8,2597.7,3.2078]
[1726978207094,0.38488,2597.8,2597.6,3.2078]
[1726978208295,0.38488,2597.8,2597.5,0.38492]
[1726978208498,0.38488,2597.8,2597.6,3.2078]
[1726978209597,0.38489,2597.7,2597.6,3.2078]
[1726978210098,1.39,2597.7,2597.2,8.31882574]
[1726978210300,1.34057,2597.9,2597.2,7.3098]
[1726978210301,0.38494,2597.4,2597.2,7.3098]
[1726978210494,0.3775,2597.3,2597.2,7.3098]
[1726978210802,0.3775,2597.3,2597.2,3.2078]
[1726978211890,0.76245,2597.3,2597.2,3.2078]
[1726978215704,0.3775,2597.3,2597.2,3.2078]
[1726978216007,0.3775,2597.3,2597.2,4.60179574]
[1726978216307,0.3775,2597.3,2597.2,4.21682574]
[1726978216706,0.3775,2597.3,2597.2,5.57428867]
[1726978216906,0.3775,2597.3,2597.2,5.57428838]
[1726978217505,0.3775,2597.3,2597.2,2.36654855]
[1726978217702,0.3775,2597.3,2597.2,5.57434855]
[1726978217905,0.3775,2597.3,2597.2,4.21682574]
[1726978220501,0.3775,2597.3,2597.2,3.2078]
[1726978221803,0.76245,2597.3,2597.2,3.2078]
[1726978222011,4.2279,2597.3,2596.9,4.21682574]
[1726978222310,1.775,2597.0,2596.9,3.2078]
[1726978223105,2.1519,2597.0,2596.9,3.2078]
[1726978224304,2.1519,2597.0,2596.7,0.4]
[1726978227010,2.1519,2597.0,2596.7,3.6078]
[1726978233112,0.7619,2597.0,2596.7,3.99284]
[1726978233312,0.7619,2597.0,2596.7,3.99283]
[1726978234113,0.3769,2597.0,2596.7,3.99283]
[1726978234819,0.7619,2597.0,2596.7,3.99283]
[1726978235319,0.3769,2597.0,2596.7,3.99283]
[1726978235517,0.3769,2597.0,2596.8,0.38503]
[1726978235719,0.38499,2597.1,2596.7,5.38283]
[1726978236031,0.385,2597.0,2596.7,5.38283]
[1726978237320,0.38499,2597.1,2596.7,5.38283]
[1726978237622,0.385,2597.0,2596.7,5.38283]
[1726978238520,0.385,2597.0,2596.7,3.6078]
[1726978238716,0.3876,2596.9,2596.7,3.2078]
[1726978238913,0.7784,2596.8,2596.7,3.2078]
[1726978239523,0.7784,2596.8,2596.6,0.38505]
[1726978239726,0.7784,2596.8,2596.7,3.2078]
[1726978240421,1.16343,2596.8,2596.7,3.2078]
[1726978240826,1.16343,2596.8,2596.5,1.50776]
[1726978242021,1.16343,2596.8,2596.5,0.3775]
[1726978242022,0.7784,2596.8,2596.5,0.3775]
[1726978242213,0.7784,2596.8,2596.4,3.59288]
[1726978242214,1.77506,2596.6,2596.4,3.2078]
[1726978242622,0.3802,2596.5,2596.4,3.2078]
[1726978244018,1.77505,2596.7,2596.4,3.59289]
[1726978244222,2.14805,2596.7,2596.4,3.59289]
[1726978244722,1.763,2596.7,2596.4,3.59289]
[1726978244922,1.763,2596.7,2596.4,3.2078]
[1726978245325,2.14805,2596.7,2596.4,3.2078]
[1726978245923,2.14805,2596.7,2596.4,3.59289]
[1726978246420,2.14805,2596.7,2596.4,3.2078]
[1726978248822,2.14805,2596.7,2596.4,3.59289]
[1726978249335,2.14805,2596.7,2596.4,3.2078]
[1726978252122,2.14805,2596.7,2596.4,3.59288]
[1726978252324,2.14805,2596.7,2596.4,3.2078]
[1726978256423,2.14805,2596.7,2596.4,3.59288]
[1726978256622,2.14805,2596.7,2596.4,4.60190574]
[1726978257027,2.14805,2596.7,2596.4,4.21682574]
[1726978258929,2.14805,2596.7,2596.4,4.60191574]
[1726978260224,2.14805,2596.7,2596.4,4.21682574]
[1726978260429,2.14805,2596.7,2596.4,4.60190574]
[1726978261028,2.14805,2596.7,2596.4,4.21682574]
[1726978262627,2.14805,2596.7,2596.4,4.60190574]
[1726978264028,2.14805,2596.7,2596.4,4.66530574]
[1726978264433,2.14805,2596.7,2596.5,1.00902574]
[1726978264733,2.14805,2596.7,2596.4,4.28022574]
[1726978265134,2.14805,2596.7,2596.5,1.00902574]
[1726978265431,2.14804,2596.7,2596.5,1.00902574]
[1726978266929,0.7784,2596.8,2596.5,1.00902574]
[1726978266930,0.7784,2596.8,2596.5,2.39902574]
[1726978267125,0.3683,2597.1,2597.0,0.385]
[1726978267325,0.3683,2597.1,2597.0,4.21688919]
[1726978268145,0.3683,2597.1,2597.0,4.60188919]
[1726978268627,0.3683,2597.1,2597.0,4.21688919]
[1726978274240,0.3683,2597.1,2597.0,3.2078]
[1726978278342,0.3683,2597.1,2597.0,3.5928]
[1726978278644,0.3683,2597.1,2597.0,3.2078]
[1726978281040,0.3683,2597.1,2596.9,0.7828]
[1726978281241,0.3683,2597.1,2597.0,3.2078]
[1726978282234,0.3683,2597.1,2596.9,0.7828]
[1726978282547,0.3683,2597.1,2597.0,3.2078]
[1726978285441,0.3683,2597.1,2596.9,0.7828]
[1726978285641,0.3683,2597.1,2597.0,3.2078]
[1726978292851,0.3683,2597.1,2597.0,3.5928]
[1726978293042,3.2754,2597.3,2597.0,3.5928]
[1726978293043,0.7684,2597.3,2597.0,3.2078]
[1726978293242,1.1512,2597.3,2597.0,3.2078]
[1726978293449,1.53616,2597.3,2597.0,3.5928]
[1726978297548,1.53616,2597.3,2597.0,3.2078]
[1726978298149,1.53616,2597.3,2597.0,3.5928]
[1726978299644,3.2078,2597.6,2597.3,0.38495]
[1726978299852,0.3898,2597.5,2597.3,3.2078]
[1726978300152,0.3652,2597.4,2597.3,3.2078]
[1726978301048,0.3652,2597.4,2597.3,3.59275]
[1726978301253,0.3652,2597.4,2597.3,3.98485]
[1726978303059,0.3652,2597.4,2597.3,4.99393919]
[1726978303260,0.3898,2597.5,2597.4,0.38494]
[1726978303457,7.38242305,2598.2,2597.4,8.71315725]
[1726978303458,6.42035305,2598.2,2597.4,8.71315725]
[1726978303653,1.1369,2598.1,2598.0,3.59265]
[1726978304149,1.1369,2598.1,2598.0,3.2078]
[1726978304357,1.1369,2598.1,2597.9,1.39313994]
[1726978304555,1.1369,2598.1,2598.0,3.2078]
[1726978304951,2.5269,2598.1,2598.0,3.2078]
[1726978310361,2.5269,2598.1,2597.9,0.38486]
[1726978310557,2.5269,2598.1,2597.9,3.59266]
[1726978311762,2.5269,2598.1,2597.9,0.38486]
[1726978311965,2.5269,2598.1,2597.9,3.59266]
[1726978313062,2.5269,2598.1,2597.9,0.38486]
[1726978313768,2.5269,2598.1,2597.9,3.59266]
[1726978316869,2.5269,2598.1,2597.9,3.2078]
[1726978317670,0.38485,2598.0,2597.9,3.2078]
[1726978319059,0.38486,2597.9,2597.5,3.5668]
[1726978319260,1.39,2597.8,2597.5,3.2078]
[1726978319463,0.7736,2597.7,2597.5,3.2078]
[1726978320365,0.7736,2597.7,2597.6,0.3849]
[1726978321070,0.7736,2597.7,2597.5,3.59271]
[1726978323974,0.7736,2597.7,2597.5,3.2078]
[1726978324172,1.15849,2597.7,2597.5,3.2078]
[1726978324878,1.1585,2597.7,2597.5,3.2078]
[1726978325379,1.1585,2597.7,2597.2,3.2078]
[1726978325380,1.77491,2597.6,2597.2,3.2078]
[1726978325776,0.3909,2597.5,2597.2,3.2078]
[1726978326475,0.3909,2597.5,2597.2,3.59277]
[1726978331485,0.3909,2597.5,2597.2,4.98277]
[1726978339187,0.3909,2597.5,2597.2,4.5978]
[1726978339789,0.3909,2597.5,2597.2,4.98275]
[1726978340175,0.3909,2597.5,2597.3,1.00827994]
[1726978341186,0.3909,2597.5,2597.2,4.60102994]
[1726978342688,0.77583,2597.5,2597.2,4.21607994]
[1726978343389,0.77583,2597.5,2597.2,3.2078]
[1726978343780,0.38495,2597.3,2597.2,3.2078]
[1726978343987,0.38495,2597.3,2597.1,1.00827994]
[1726978343988,0.38497,2597.2,2597.1,1.00827994]
[1726978344286,0.7593,2597.2,2597.0,4.21607994]
[1726978344983,0.7593,2597.2,2597.0,4.60107994]
[1726978345285,0.7593,2597.2,2597.1,1.00827994]
[1726978348184,2.53428,2597.2,2597.0,3.2078]
[1726978348386,0.38498,2597.1,2597.0,3.2078]
[1726978349086,0.38498,2597.1,2596.7,5.49530994]
[1726978349087,0.38498,2597.1,2596.8,0.38503]
[1726978349396,2.1493,2597.2,2596.8,0.38503]
[1726978349397,2.53427,2597.2,2596.9,3.2078]
[1726978350783,2.53427,2597.2,2596.9,3.59281]
[1726978352585,2.53427,2597.2,2596.9,3.2078]
[1726978355483,2.53427,2597.2,2596.9,3.59281]
[1726978359587,2.53427,2597.2,2596.9,0.38501]
[1726978359984,0.38499,2597.1,2596.8,3.59282]
[1726978361394,2.1493,2597.2,2596.8,3.59282]
[1726978361395,2.53427,2597.2,2596.8,3.59282]
[1726978361595,0.4045,2597.3,2597.1,3.2078]
[1726978361792,0.4045,2597.3,2597.2,0.38497]
[1726978361998,0.4045,2597.3,2597.1,3.59277]
[1726978364393,0.4045,2597.3,2597.1,4.60104994]
[1726978364688,0.4045,2597.3,2597.1,3.59277]
[1726978365095,0.4045,2597.3,2597.1,4.60104994]
[1726978366789,0.4045,2597.3,2597.2,0.3864]
[1726978368001,0.4028,2597.4,2597.2,0.3864]
[1726978370293,0.4028,2597.4,2597.2,1.39467994]
[1726978370493,0.4028,2597.4,2597.2,0.3864]
[1726978371799,0.4028,2597.4,2597.2,0.4498]
[1726978372904,0.78774,2597.4,2597.2,0.4498]
[1726978378492,0.78774,2597.4,2597.2,1.45807994]
[1726978381200,0.77992,2597.6,2597.2,1.84303994]
[1726978381504,2.497,2597.9,2597.5,1.39319994]
[1726978381803,3.644,2597.9,2597.6,0.399]
[1726978382404,0.38488,2597.8,2597.6,0.399]
[1726978385407,0.38488,2597.8,2597.5,1.00827994]
[1726978385595,1.7749,2597.7,2597.4,3.2078]
[1726978386000,0.3695,2597.6,2597.4,3.2078]
[1726978386202,0.7698,2597.5,2597.4,3.2078]
[1726978386705,0.7698,2597.5,2597.4,3.59274]
[1726978388508,0.7698,2597.5,2597.4,3.2078]
[1726978391112,0.7698,2597.5,2597.4,3.59274]
[1726978391312,0.7698,2597.5,2597.4,3.2078]
[1726978393707,0.7698,2597.5,2597.4,5.57430137]
[1726978394708,0.7698,2597.5,2597.4,4.21607994]
[1726978396014,1.15472,2597.5,2597.4,4.21607994]
[1726978396609,0.7698,2597.5,2597.4,4.21607994]
[1726978398010,1.15472,2597.5,2597.4,4.21607994]
[1726978398315,0.7698,2597.5,2597.4,4.21607994]
[1726978398711,1.15472,2597.5,2597.4,4.21607994]
[1726978399516,0.7698,2597.5,2597.4,4.21607994]
[1726978400720,0.7698,2597.5,2597.4,3.2078]
[1726978402325,2.54472,2597.5,2597.4,3.2078]
[1726978408322,2.54472,2597.5,2597.4,3.2712]
[1726978408719,2.54472,2597.5,2597.4,5.63873922]
[1726978413727,2.54472,2597.5,2597.4,4.27947994]
[1726978414027,2.54472,2597.5,2597.4,4.63072274]
[1726978416222,2.54472,2597.5,2597.4,6.14435652]
[1726978419133,2.54472,2597.5,2597.4,6.14465826]
[1726978419326,1.15472,2597.5,2597.4,6.14465826]
[1726978420233,1.15472,2597.5,2597.4,6.74643142]
[1726978422137,1.15472,2597.5,2597.4,6.14465826]
[1726978422332,2.54472,2597.5,2597.4,6.74643147]
[1726978422838,2.54472,2597.5,2597.4,3.2712]
[1726978423537,2.54472,2597.5,2597.4,3.2078]
[1726978427140,0.38495,2597.4,2597.3,3.2078]
[1726978430540,0.38495,2597.4,2597.1,1.01002288]
[1726978430839,0.38495,2597.4,2597.3,4.21782288]
[1726978433931,0.38495,2597.4,2597.3,5.57769967]
[1726978434728,0.38495,2597.4,2597.3,5.57769716]
[1726978435132,0.38495,2597.4,2597.3,4.56767428]
[1726978435545,0.38495,2597.4,2597.3,1.35987428]
[1726978435842,0.38495,2597.4,2597.3,4.56767428]
[1726978436143,0.38495,2597.4,2597.3,5.57747248]
[1726978436439,0.38495,2597.4,2597.3,4.56767428]
[1726978436643,0.38495,2597.4,2597.3,5.57747782]
[1726978437147,0.38495,2597.4,2597.3,5.57747757]
[1726978437335,0.38495,2597.4,2597.3,4.56767428]
[1726978437843,0.38495,2597.4,2597.1,2.02067165]
[1726978437844,0.38495,2597.3,2597.1,1.00981297]
[1726978438039,0.78065,2597.3,2597.0,2.15611297]
[1726978438849,0.78065,2597.3,2597.0,2.54110297]
[1726978443551,1.77498,2597.1,2597.0,1.00981297]
[1726978443839,1.77498,2597.1,2596.9,4.21761297]
[1726978444044,0.776,2597.0,2596.9,4.21761297]
[1726978444342,1.5632,2597.0,2596.9,3.2078]
[1726978445336,1.5632,2597.0,2596.8,0.3903]
[1726978445536,1.5632,2597.0,2596.8,3.5981]
[1726978445740,1.1782,2597.0,2596.8,0.3903]
[1726978445940,1.1782,2597.0,2596.9,1.00981297]
[1726978447044,1.1782,2597.0,2596.9,2.36909801]
[1726978447241,1.1782,2597.0,2596.9,2.36901186]
[1726978447441,1.1782,2597.0,2596.9,1.00981297]
[1726978459662,1.1782,2597.0,2596.9,4.21761297]
[1726978460962,1.1782,2597.0,2596.8,1.78513297]
[1726978461265,0.96232,2597.5,2596.9,12.93248045]
[1726978461266,2.492,2597.4,2596.9,12.93248045]
[1726978461566,2.492,2597.4,2597.2,3.2078]
[1726978461760,2.87694,2597.4,2597.2,3.2078]
[1726978461960,4.26694,2597.4,2597.2,3.2078]
[1726978462169,0.3817,2597.3,2597.2,3.2078]
[1726978463063,2.15665,2597.3,2597.2,3.2078]
[1726978463769,2.15665,2597.3,2597.1,3.2078]
[1726978463961,0.7771,2597.2,2597.0,1.39390493]
[1726978464268,0.7771,2597.2,2597.1,3.2078]
[1726978466074,0.7771,2597.2,2597.0,1.39390493]
[1726978466276,0.7771,2597.2,2597.1,3.2078]